bitfinex/quotes_SOLUSD_20260113
["timestamp","ask_amount","ask_price","bid_price","bid_amount"]
[1768293663166,2.05867131,141.1,141.07,0.71911729]
[1768293663871,0.07839602,141.11,141.07,0.71911729]
[1768293664061,2.13706733,141.11,141.07,0.71911729]
[1768293664461,2.05867131,141.1,141.07,0.71911729]
[1768293666560,2.05867131,141.08,141.06,0.66867254]
[1768293667059,7.16619751,141.09,141.06,0.66867254]
[1768293667255,2.05867131,141.08,141.06,0.66867254]
[1768293667652,9.22486882,141.09,141.06,0.66867254]
[1768293668470,9.22486882,141.09,141.05,5.63243354]
[1768293670566,7.22953621,141.1,141.06,0.66867254]
[1768293671089,7.30793223,141.1,141.06,0.66867254]
[1768293671386,0.07839602,141.12,141.08,0.66867254]
[1768293671577,2.05867131,141.11,141.08,0.66867254]
[1768293671970,0.07839602,141.13,141.1,0.66867254]
[1768293672178,2.05867131,141.14,141.1,0.66867254]
[1768293672479,9.22238511,141.14,141.1,0.66867254]
[1768293672680,0.07839602,141.15,141.12,0.66867254]
[1768293672865,0.07839602,141.15,141.12,0.60867255]
[1768293673274,2.13706733,141.15,141.12,0.60867255]
[1768293673471,2.05867131,141.15,141.12,0.60867255]
[1768293673771,9.28122713,141.16,141.12,0.60867255]
[1768293674486,2.05867131,141.15,141.12,0.60867255]
[1768293675584,2.05867131,141.14,141.12,0.60867255]
[1768293676178,7.22255582,141.16,141.12,0.60867255]
[1768293676379,2.05867131,141.14,141.12,0.60867255]
[1768293676993,2.05867131,141.14,141.12,0.54867256]
[1768293677188,7.22255582,141.16,141.12,0.54867256]
[1768293677485,2.05867131,141.14,141.12,0.54867256]
[1768293678000,7.22255582,141.16,141.12,0.54867256]
[1768293678188,2.05867131,141.15,141.12,0.54867256]
[1768293679793,7.083658,141.17,141.12,0.54867256]
[1768293679967,2.05867131,141.14,141.12,0.54867256]
[1768293686098,2.05867131,141.13,141.1,0.72435553]
[1768293689095,9.14434717,141.13,141.1,0.72435553]
[1768293689399,2.05867131,141.12,141.1,0.72435553]
[1768293689775,2.05867131,141.11,141.08,5.68811653]
[1768293690497,2.05867131,141.11,141.09,0.72435553]
[1768293691095,2.05867131,141.12,141.09,0.72435553]
[1768293691682,7.08586125,141.13,141.09,0.72435553]
[1768293691891,2.05867131,141.12,141.09,0.72435553]
[1768293692977,0.05999999,141.14,141.1,0.72435553]
[1768293693180,2.05867131,141.13,141.1,0.72435553]
[1768293699409,2.05867131,141.12,141.1,0.72435553]
[1768293702589,7.14516365,141.14,141.1,0.72435553]
[1768293702906,2.05867131,141.13,141.1,0.72435553]
[1768293705997,7.14516365,141.14,141.1,0.72435553]
[1768293706298,2.05867131,141.13,141.1,0.72435553]
[1768293707311,3.21642044,141.13,141.1,0.72435553]
[1768293708034,7.14516365,141.14,141.1,0.72435553]
[1768293708226,3.21642044,141.13,141.1,0.72435553]
[1768293709515,3.21642044,141.12,141.1,0.72435553]
[1768293710223,3.21642044,141.12,141.09,0.67211303]
[1768293710224,3.21642044,141.11,141.09,0.67211303]
[1768293710415,3.21642044,141.1,141.07,0.67211303]
[1768293710611,3.21642044,141.1,141.08,4.963761]
[1768293710814,3.27642043,141.09,141.06,0.67211303]
[1768293711017,3.21642044,141.08,141.06,0.67211303]
[1768293711216,3.27642043,141.09,141.06,0.67211303]
[1768293711922,3.21642044,141.08,141.06,0.67211303]
[1768293718435,3.27642043,141.08,141.05,13.61211303]
[1768293718629,3.21642044,141.08,141.06,0.67211303]
[1768293720415,0.05999999,141.09,141.06,0.67211303]
[1768293720617,0.05999999,141.12,141.08,0.67211303]
[1768293720829,3.21642044,141.14,141.1,0.67211303]
[1768293722526,3.21642044,141.15,141.1,0.67211303]
[1768293722849,3.21642044,141.15,141.12,0.67211303]
[1768293724139,3.21642044,141.15,141.12,0.61211307]
[1768293725844,3.21642044,141.15,141.12,7.08604165]
[1768293726048,3.21642044,141.15,141.1,7.08717221]
[1768293726249,3.21642044,141.15,141.11,0.72009262]
[1768293726622,3.21642044,141.14,141.11,0.72009262]
[1768293728546,3.21642044,141.14,141.12,0.72009262]
[1768293729346,3.21642044,141.15,141.12,0.72009262]
[1768293729550,3.21642044,141.15,141.12,7.80621085]
[1768293730227,3.21642044,141.16,141.13,0.72009262]
[1768293731361,3.21642044,141.17,141.13,0.72009262]
[1768293731841,7.20285369,141.19,141.14,0.72009262]
[1768293732030,3.33621039,141.17,141.13,7.8056059]
[1768293733331,3.21642044,141.16,141.13,7.8056059]
[1768293733721,3.33621039,141.17,141.13,7.8056059]
[1768293736625,3.21642044,141.17,141.14,0.69304042]
[1768293737545,0.11999995,141.18,141.14,0.69304042]
[1768293737546,3.21642044,141.16,141.14,0.69304042]
[1768293738646,7.20321056,141.18,141.14,0.69304042]
[1768293738845,3.21642044,141.16,141.14,0.69304042]
[1768293748351,3.21642044,141.16,141.13,7.7785537]
[1768293748948,0.099,141.17,141.13,7.7785537]
[1768293749151,3.21642044,141.16,141.13,7.7785537]
[1768293751058,0.099,141.17,141.13,7.77849114]
[1768293751358,3.21642044,141.16,141.13,7.77849114]
[1768293752357,0.099,141.17,141.13,7.77849114]
[1768293752545,3.21642044,141.16,141.13,7.77849114]
[1768293753457,3.33621039,141.16,141.13,0.69304042]
[1768293753648,0.11999995,141.16,141.12,7.77902972]
[1768293753849,3.21642044,141.15,141.12,7.77902972]
[1768293756857,3.33642039,141.17,141.13,0.70408749]
[1768293758463,0.099,141.16,141.13,7.78951651]
[1768293758765,3.33642039,141.17,141.14,0.70408749]
[1768293759961,3.21642044,141.16,141.14,0.70408749]
[1768293760463,3.21642044,141.17,141.14,0.70408749]
[1768293764455,3.21642044,141.16,141.14,0.70408749]
[1768293765453,3.31542044,141.17,141.14,0.70408749]
[1768293767576,2.15644948,141.17,141.14,0.70408749]
[1768293768099,2.05744948,141.16,141.14,0.70408749]
[1768293770975,9.24011172,141.17,141.14,0.70408749]
[1768293771474,9.14111172,141.17,141.14,0.70408749]
[1768293772266,9.26079116,141.18,141.14,0.70408749]
[1768293772459,0.1,141.2,141.14,37.73788292]
[1768293772676,0.1,141.2,141.15,2.05744948]
[1768293772975,0.1,141.21,141.19,0.70408749]
[1768293773769,2.15744948,141.21,141.19,0.70408749]
[1768293773975,2.05744948,141.2,141.19,0.70408749]
[1768293774752,2.15744948,141.21,141.19,0.70408749]
[1768293775180,0.1,141.21,141.19,0.70408749]
[1768293775359,2.15744948,141.21,141.19,0.70408749]
[1768293777851,0.23654403,141.2,141.17,7.08361171]
[1768293778778,0.23654403,141.2,141.16,7.78803752]
[1768293779078,0.70606658,141.2,141.16,7.08395003]
[1768293779272,0.70606658,141.2,141.16,7.78803752]
[1768293779477,9.23911389,141.21,141.17,0.70408749]
[1768293780178,2.15744948,141.21,141.18,0.70408749]
[1768293780479,0.1,141.21,141.18,0.70408749]
[1768293780773,2.05744948,141.19,141.15,0.70408749]
[1768293780971,0.23654403,141.19,141.15,0.70408749]
[1768293781170,2.05744948,141.18,141.15,0.70408749]
[1768293781766,0.23654403,141.19,141.15,0.70408749]
[1768293781955,2.05744948,141.18,141.15,0.70408749]
[1768293783102,2.05744948,141.17,141.15,0.70408749]
[1768293784677,2.05744948,141.2,141.16,0.67537917]
[1768293784978,2.15744948,141.21,141.16,0.67537917]
[1768293786370,2.15744948,141.21,141.18,0.67537917]
[1768293787160,0.27973422,141.2,141.17,7.083658]
[1768293787476,0.27973422,141.2,141.17,9.81648665]
[1768293787868,0.27973422,141.2,141.17,27.52563165]
[1768293790275,0.27973422,141.2,141.17,26.85025248]
[1768293790469,0.1,141.21,141.18,0.67537917]
[1768293791673,0.1,141.21,141.19,0.67537917]
[1768293793687,0.1,141.21,141.2,0.65466782]
[1768293793888,0.1,141.21,141.2,0.59466784]
[1768293798988,2.15744948,141.23,141.21,0.65466782]
[1768293799288,2.15744948,141.23,141.21,0.59466784]
[1768293800383,0.1,141.23,141.21,0.59466784]
[1768293800599,2.15744948,141.23,141.21,0.59466784]
[1768293801381,0.1,141.23,141.21,0.59466784]
[1768293801588,2.15744948,141.23,141.21,0.59466784]
[1768293805296,0.1,141.23,141.2,0.65466782]
[1768293805498,2.15744948,141.23,141.2,0.65466782]
[1768293807602,2.65369429,141.23,141.2,0.65466782]
[1768293812175,2.05744948,141.22,141.2,0.65466782]
[1768293812588,9.73468131,141.23,141.2,0.65466782]
[1768293814896,0.66206754,141.22,141.19,7.80695465]
[1768293815294,9.96262684,141.23,141.2,0.72433556]
[1768293817000,0.43640147,141.22,141.19,0.72433556]
[1768293820306,9.2384365,141.23,141.19,0.72433556]
[1768293820506,9.67483797,141.23,141.19,0.72433556]
[1768293821381,0.72131245,141.22,141.18,9.14044882]
[1768293821786,0.72131245,141.22,141.18,9.86478438]
[1768293823307,0.72131245,141.22,141.18,9.14044882]
[1768293823508,0.72131245,141.22,141.18,9.86478438]
[1768293824106,0.72131245,141.22,141.18,7.8073349]
[1768293824803,0.71849183,141.2,141.17,12.92]
[1768293825013,0.71572735,141.18,141.15,7.08432944]
[1768293825198,0.71572735,141.18,141.16,6.63488502]
[1768293826108,0.71572735,141.18,141.14,24.79733343]
[1768293827010,0.61572735,141.17,141.14,7.08516366]
[1768293827709,2.05744948,141.18,141.15,0.72433556]
[1768293828991,2.15644948,141.19,141.15,0.72433556]
[1768293829487,3.31254332,141.19,141.15,0.72433556]
[1768293832012,10.39521496,141.19,141.15,0.72433556]
[1768293835115,0.099,141.19,141.15,7.80869013]
[1768293835309,3.31254332,141.19,141.16,0.72433556]
[1768293836524,10.39553162,141.19,141.16,0.72433556]
[1768293837722,0.099,141.19,141.16,0.72433556]
[1768293837924,3.31254332,141.19,141.16,0.72433556]
[1768293838521,3.31254332,141.19,141.15,7.80868918]
[1768293839724,3.31254332,141.19,141.16,0.72433556]
[1768293847029,3.21354332,141.2,141.17,0.67586443]
[1768293847332,3.21354332,141.22,141.18,0.67586443]
[1768293847533,0.71572735,141.23,141.18,0.67586443]
[1768293847717,11.01021673,141.23,141.18,0.67586443]
[1768293848724,11.01021673,141.23,141.19,0.67586443]
[1768293848925,3.92927067,141.23,141.19,0.67586443]
[1768293849128,0.71572735,141.23,141.19,0.67586443]
[1768293851023,3.92927067,141.23,141.2,0.67586443]
[1768293851916,0.71572735,141.23,141.2,0.67586443]
[1768293852125,3.92927067,141.23,141.2,0.67586443]
[1768293852414,0.71572735,141.23,141.2,0.67586443]
[1768293852812,3.92927067,141.23,141.2,0.67586443]
[1768293853011,0.099,141.22,141.19,7.7584048]
[1768293853440,0.099,141.22,141.19,7.08254037]
[1768293853642,0.099,141.22,141.2,6.46637301]
[1768293853818,0.1,141.23,141.2,6.46637301]
[1768293855236,0.1,141.23,141.2,7.13822443]
[1768293855431,3.21354332,141.26,141.21,0.67185142]
[1768293856138,3.21354332,141.28,141.22,0.67185142]
[1768293856344,24.76889165,141.31,141.24,0.67185142]
[1768293856345,3.21354332,141.29,141.24,0.67185142]
[1768293856733,3.21354332,141.29,141.25,7.75149743]
[1768293857443,3.21354332,141.3,141.26,0.67185142]
[1768293857747,3.21354332,141.29,141.26,0.67185142]
[1768293859027,7.07718563,141.3,141.26,0.67185142]
[1768293859341,3.21354332,141.29,141.26,0.67185142]
[1768293859546,7.07718563,141.3,141.26,0.67185142]
[1768293859841,3.21354332,141.29,141.26,0.67185142]
[1768293862320,3.21354332,141.27,141.22,0.67185142]
[1768293862524,3.21354332,141.26,141.22,0.67185142]
[1768293862725,3.21354332,141.26,141.22,7.75262332]
[1768293862927,3.21354332,141.27,141.23,0.67185142]
[1768293863126,37.68824003,141.31,141.24,0.67185142]
[1768293863328,3.21354332,141.27,141.24,0.67185142]
[1768293864544,3.21354332,141.26,141.24,0.67185142]
[1768293866846,3.21354332,141.27,141.24,0.67185142]
[1768293867654,10.29172965,141.28,141.24,0.67185142]
[1768293870033,3.21354332,141.27,141.24,0.67185142]
[1768293872636,3.21354332,141.27,141.23,7.75234677]
[1768293872836,3.21354332,141.27,141.24,0.67185142]
[1768293873050,10.29172084,141.28,141.24,0.67185142]
[1768293874340,3.21354332,141.27,141.24,0.67185142]
[1768293878959,3.21354332,141.28,141.24,0.67185142]
[1768293881043,10.29169833,141.28,141.24,0.67185142]
[1768293881748,7.07815501,141.28,141.24,0.67185142]
[1768293881948,10.29169833,141.28,141.25,0.69646596]
[1768293882360,7.07815501,141.28,141.25,0.69646596]
[1768293883066,7.07664001,141.31,141.26,0.69646596]
[1768293883363,3.21354332,141.31,141.26,0.69646596]
[1768293884362,3.21354332,141.3,141.27,0.69646596]
[1768293885457,3.21354332,141.29,141.27,0.69646596]
[1768293886464,3.21354332,141.29,141.27,0.63646598]
[1768293891377,2.05371505,141.29,141.27,0.63646598]
[1768293892171,2.05371505,141.3,141.26,7.07909456]
[1768293892547,2.05371505,141.3,141.27,0.69646596]
[1768293893458,16.33201559,141.32,141.29,0.69646596]
[1768293894160,0.68722546,141.29,141.26,0.69646596]
[1768293894361,2.74094051,141.28,141.25,7.079316]
[1768293894562,2.05371505,141.28,141.26,0.69646596]
[1768293896792,2.05371505,141.27,141.25,0.69646596]
[1768293897579,2.74094051,141.28,141.25,0.69646596]
[1768293897769,2.74094051,141.28,141.25,7.7760205]
[1768293899883,2.05371505,141.26,141.24,0.69646596]
[1768293900063,2.74094051,141.27,141.23,0.69646596]
[1768293901183,2.74094051,141.26,141.23,0.69646596]
[1768293901969,2.05371505,141.24,141.22,0.69646596]
[1768293902164,2.02371503,141.24,141.22,7.77759043]
[1768293902373,2.74094051,141.25,141.21,7.77795701]
[1768293902575,7.0792057,141.26,141.2,0.69646596]
[1768293902884,24.77706779,141.26,141.2,0.69646596]
[1768293903195,2.05371505,141.24,141.2,7.77859646]
[1768293904178,2.05371505,141.23,141.19,7.77912053]
[1768293904373,7.0792057,141.26,141.2,0.69646596]
[1768293904583,19.74959585,141.28,141.23,0.69150657]
[1768293904584,2.05371505,141.28,141.23,0.69150657]
[1768293904784,2.05371505,141.28,141.23,2.74522162]
[1768293905084,2.05371505,141.28,141.24,0.69150657]
[1768293906158,2.05371505,141.28,141.24,7.77150341]
[1768293906363,0.66401649,141.29,141.25,0.69150657]
[1768293906563,2.05371505,141.29,141.25,0.69150657]
[1768293907586,2.05371505,141.29,141.26,0.69150657]
[1768293908392,9.79491765,141.3,141.26,0.69150657]
[1768293911691,0.25617044,141.29,141.26,0.69150657]
[1768293911893,2.30988549,141.29,141.26,0.69150657]
[1768293918396,2.30988549,141.29,141.25,7.73478407]
[1768293921702,2.30988549,141.29,141.26,0.65541472]
[1768293923688,9.38753931,141.29,141.26,0.65541472]
[1768293923883,7.33382426,141.29,141.26,0.65541472]
[1768293924079,0.26020812,141.27,141.22,0.65541472]
[1768293924292,2.70965578,141.26,141.22,0.65541472]
[1768293924492,2.77134467,141.27,141.24,0.65541472]
[1768293927908,2.77134467,141.27,141.23,7.73597846]
[1768293929908,0.71762962,141.27,141.23,7.73597846]
[1768293930893,9.13213787,141.28,141.25,0.65541472]
[1768293931092,9.33523132,141.28,141.25,0.65541472]
[1768293933314,2.2568085,141.28,141.25,0.65541472]
[1768293934711,0.20309345,141.28,141.25,0.65541472]
[1768293934909,7.73508191,141.3,141.26,0.65904929]
[1768293935109,9.78879696,141.3,141.26,0.65904929]
[1768293935694,0.26225379,141.29,141.25,9.13310967]
[1768293936613,0.26225379,141.29,141.25,8.47258894]
[1768293937701,0.26225379,141.29,141.25,9.13163823]
[1768293937902,9.22992526,141.3,141.26,0.65904929]
[1768293940341,2.05371505,141.29,141.26,0.65904929]
[1768293940625,2.05371505,141.28,141.26,0.65904929]
[1768293943809,2.2153363,141.28,141.24,7.73901958]
[1768293944027,2.05371505,141.27,141.24,6.9177165]
[1768293945233,2.05371505,141.27,141.23,7.08064858]
[1768293946022,2.05371505,141.28,141.23,7.08064858]
[1768293946331,2.05371505,141.28,141.23,7.73969787]
[1768293946731,2.05371505,141.28,141.23,9.79341292]
[1768293947232,2.05371505,141.28,141.24,0.65904929]
[1768293947930,9.13189094,141.28,141.24,0.65904929]
[1768293948915,9.13189094,141.28,141.25,0.65904929]
[1768293949435,2.05371505,141.28,141.25,0.65904929]
[1768293952634,36.07647498,141.32,141.25,7.73856277]
[1768293952835,14.43615604,141.31,141.27,0.65904929]
[1768293953135,7.07664001,141.31,141.27,0.65904929]
[1768293953736,10.28444777,141.31,141.27,0.65904929]
[1768293954327,16.33201559,141.32,141.29,0.65904929]
[1768293954530,16.33201559,141.32,141.3,7.07714083]
[1768293954726,16.33201559,141.32,141.31,0.65904929]
[1768293955331,0.1,141.34,141.3,7.07714083]
[1768293955738,0.1,141.34,141.31,0.65904929]
[1768293956424,3.30780776,141.34,141.31,0.65904929]
[1768293956739,0.17033191,141.33,141.31,7.07660823]
[1768293956919,3.30780776,141.34,141.31,7.73565752]
[1768293960953,0.1,141.34,141.32,0.65904929]
[1768293962043,55.41975792,141.77,141.33,0.65904929]
[1768293962044,7.07371063,141.37,141.33,0.65904929]
[1768293962224,10.28151839,141.37,141.33,0.65904929]
[1768293962544,0.6578717,141.39,141.33,0.65904929]
[1768293962731,3.20780776,141.38,141.35,0.65904929]
[1768293963321,0.4417922,141.41,141.36,0.65904929]
[1768293963523,0.4417922,141.41,141.37,0.65904929]
[1768293964367,3.64959996,141.41,141.37,0.65904929]
[1768293964726,0.4417922,141.41,141.38,0.68144977]
[1768293964929,3.20780776,141.4,141.38,0.68144977]
[1768293966024,10.7214733,141.41,141.38,0.68144977]
[1768293966422,7.51366554,141.41,141.38,0.68144977]
[1768293966827,10.7214733,141.41,141.38,0.68144977]
[1768293968925,3.20780776,141.4,141.38,0.62144977]
[1768293970347,3.20780776,141.39,141.33,3.20780776]
[1768293970550,3.20780776,141.38,141.33,10.28306239]
[1768293970774,3.20780776,141.38,141.34,7.0750856]
[1768293970953,3.20780776,141.38,141.35,0.68144977]
[1768293971837,10.28095101,141.38,141.35,0.68144977]
[1768293972032,3.20780776,141.37,141.35,0.68144977]
[1768293974048,3.20780776,141.36,141.32,0.68144977]
[1768293975047,3.20780776,141.35,141.32,0.68144977]
[1768293975257,3.20780776,141.33,141.29,0.67194135]
[1768293975447,3.20780776,141.32,141.29,0.67194135]
[1768293976158,3.20780776,141.33,141.29,0.67194135]
[1768293976352,3.20780776,141.33,141.3,0.67194135]
[1768293977461,3.51722664,141.33,141.29,7.74943588]
[1768293977641,10.59298539,141.33,141.29,0.67194135]
[1768293977841,10.28356651,141.33,141.29,0.67194135]
[1768293978858,3.20780776,141.32,141.29,0.67194135]
[1768293980859,3.91561446,141.31,141.27,20.67042347]
[1768293981058,3.20780776,141.31,141.28,0.67194135]
[1768293981259,3.20780776,141.32,141.28,0.67194135]
[1768293983171,3.20780776,141.31,141.28,0.67194135]
[1768293985273,3.20780776,141.32,141.29,0.67194135]
[1768293988175,10.28398779,141.32,141.29,0.67194135]
[1768293998976,3.20780776,141.31,141.29,0.67194135]
[1768294002283,7.34175725,141.32,141.29,0.67194135]
[1768294002463,3.20780776,141.31,141.29,0.67194135]
[1768294005884,3.91060605,141.31,141.28,0.66988646]
[1768294006086,3.91060605,141.31,141.28,7.74802452]
[1768294006461,3.20780776,141.31,141.28,7.74802452]
[1768294006659,3.20780776,141.31,141.29,0.66988646]
[1768294010988,3.48718745,141.31,141.28,7.74802452]
[1768294012775,0.6985641,141.3,141.27,20.66848931]
[1768294013886,0.6985641,141.3,141.27,7.74848931]
[1768294015383,7.07623562,141.32,141.27,7.74848931]
[1768294015384,0.70279829,141.32,141.28,0.66988646]
[1768294015572,2.75576568,141.32,141.28,0.66988646]
[1768294015774,2.75576568,141.35,141.31,0.66988646]
[1768294015980,0.70279829,141.35,141.32,0.64442212]
[1768294019110,7.77727073,141.36,141.32,0.64442212]
[1768294019274,9.83023812,141.36,141.32,0.64442212]
[1768294020092,2.05296739,141.38,141.34,0.66988646]
[1768294021496,9.43071018,141.38,141.34,0.66988646]
[1768294023082,7.37774279,141.38,141.34,0.66988646]
[1768294023281,9.43071018,141.38,141.34,0.66988646]
[1768294023499,0.69881621,141.37,141.33,9.12838527]
[1768294023798,0.69881621,141.37,141.34,7.07506937]
[1768294024004,2.75576568,141.38,141.34,7.74495583]
[1768294024304,0.30458938,141.37,141.34,7.74495583]
[1768294025179,0.30458938,141.37,141.34,0.66988646]
[1768294025377,0.71140807,141.34,141.3,0.69329888]
[1768294025602,0.71140807,141.36,141.33,7.07556941]
[1768294027118,0.71140807,141.36,141.33,7.76886829]
[1768294028733,2.05296739,141.37,141.34,0.69329888]
[1768294030729,7.78466146,141.38,141.34,0.69329888]
[1768294030934,2.05296739,141.37,141.34,0.69329888]
[1768294031225,0.2960657,141.36,141.33,7.07556941]
[1768294031426,0.71140807,141.39,141.34,7.07510107]
[1768294031741,2.34903309,141.4,141.35,0.69329888]
[1768294031906,7.51360525,141.41,141.36,0.69329888]
[1768294032233,2.05296739,141.4,141.36,0.69329888]
[1768294033409,2.05296739,141.4,141.37,0.69329888]
[1768294034925,2.05296739,141.39,141.36,0.67209623]
[1768294035424,0.67511122,141.4,141.35,0.67209623]
[1768294035836,2.72807861,141.4,141.35,0.67209623]
[1768294036203,2.72807861,141.4,141.36,0.67209623]
[1768294036918,0.67511122,141.4,141.36,0.67209623]
[1768294037119,2.72807861,141.4,141.36,0.67209623]
[1768294037316,2.05296739,141.39,141.36,0.67209623]
[1768294039613,7.74726764,141.4,141.36,0.67209623]
[1768294040022,2.05296739,141.39,141.36,0.67209623]
[1768294041732,2.38496697,141.39,141.36,0.67209623]
[1768294044331,0.67511122,141.4,141.36,0.67209623]
[1768294044523,0.33199958,141.4,141.37,0.67209623]
[1768294045206,0.33199958,141.4,141.36,6.73535201]
[1768294045207,0.67168011,141.39,141.36,6.73535201]
[1768294045402,2.15196739,141.4,141.37,0.67209623]
[1768294046008,9.2241574,141.4,141.37,0.67209623]
[1768294047132,2.15196739,141.4,141.37,0.67209623]
[1768294048112,2.61992069,141.39,141.35,7.746351]
[1768294048321,2.15664693,141.38,141.35,7.746351]
[1768294048628,2.05296739,141.38,141.36,0.67209623]
[1768294049023,2.05296739,141.39,141.36,0.67209623]
[1768294049432,7.64397921,141.4,141.36,0.67209623]
[1768294049735,2.05296739,141.39,141.36,0.67209623]
[1768294053541,7.64397921,141.4,141.36,0.67209623]
[1768294053741,2.05296739,141.39,141.36,0.67209623]
[1768294056244,7.64397921,141.4,141.37,0.65880718]
[1768294056420,9.6969466,141.4,141.37,0.65880718]
[1768294057846,9.6969466,141.4,141.36,0.65880718]
[1768294060038,9.6969466,141.4,141.36,7.732902]
[1768294060228,2.05296739,141.39,141.36,7.732902]
[1768294060628,7.0722991,141.4,141.37,0.65880718]
[1768294060824,9.12526649,141.4,141.37,0.65880718]
[1768294061434,2.05296739,141.4,141.37,0.65880718]
[1768294061941,7.51363416,141.41,141.37,0.65880718]
[1768294062132,2.05296739,141.4,141.37,0.65880718]
[1768294063837,2.49475959,141.41,141.38,0.65880718]
[1768294066251,2.05296739,141.4,141.38,0.65880718]
[1768294067538,7.51343628,141.41,141.38,0.65880718]
[1768294067744,2.05296739,141.4,141.38,0.65880718]
[1768294067933,0.4417922,141.41,141.35,24.76058481]
[1768294068138,0.4417922,141.41,141.36,2.05296739]
[1768294068139,2.49475959,141.41,141.36,2.05296739]
[1768294068337,2.49475959,141.41,141.35,26.8135522]
[1768294068549,2.49475959,141.41,141.36,0.65880718]
[1768294070458,2.49475959,141.41,141.37,0.65880718]
[1768294072962,2.49475959,141.41,141.38,0.65880718]
[1768294074965,3.17289295,141.41,141.38,0.65880718]
[1768294075464,3.20388898,141.4,141.38,0.65880718]
[1768294075658,1e-08,141.4,141.38,0.65880718]
[1768294076063,0.67813337,141.4,141.37,0.65880718]
[1768294076246,0.67813336,141.4,141.37,0.65880718]
[1768294076559,3.88202234,141.4,141.37,7.73240857]
[1768294076749,3.20388898,141.4,141.37,7.73240857]
[1768294076949,3.20388898,141.4,141.38,0.65880718]
[1768294079646,3.20388898,141.4,141.38,7.73193457]
[1768294079846,3.20388898,141.4,141.38,0.65880718]
[1768294080666,4.32381454,141.41,141.38,0.65880718]
[1768294083558,4.32381454,141.41,141.38,7.7319348]
[1768294084566,1e-08,141.41,141.4,0.65880718]
[1768294085155,0.70015298,141.44,141.41,0.7158866]
[1768294085349,3.90404196,141.43,141.4,0.7158866]
[1768294086458,0.70015298,141.42,141.39,7.78826624]
[1768294087168,0.70015298,141.42,141.39,7.07237964]
[1768294087867,0.70015298,141.41,141.39,7.07237964]
[1768294088455,3.90404196,141.43,141.4,0.7158866]
[1768294089163,3.20388898,141.42,141.4,0.7158866]
[1768294089567,0.70015298,141.43,141.4,0.7158866]
[1768294089771,3.90404196,141.43,141.4,0.7158866]
[1768294090669,0.70015298,141.42,141.39,7.07237964]
[1768294091067,0.70015298,141.42,141.39,7.78826624]
[1768294092274,3.90404196,141.42,141.39,7.78826624]
[1768294093070,3.90404196,141.43,141.39,7.78826624]
[1768294093270,0.70015298,141.43,141.39,7.78826624]
[1768294093569,3.90404196,141.43,141.39,7.78826624]
[1768294094366,3.20388898,141.44,141.41,0.71004429]
[1768294095155,7.06916746,141.46,141.41,7.78141882]
[1768294095374,3.20388898,141.45,141.42,0.71004429]
[1768294095876,7.06916746,141.46,141.42,0.71004429]
[1768294096078,3.20388898,141.45,141.42,0.71004429]
[1768294096377,3.20388898,141.44,141.42,0.71004429]
[1768294097078,0.70894823,141.46,141.42,0.71004429]
[1768294097282,3.20388898,141.44,141.42,7.78115907]
[1768294097580,3.20388898,141.45,141.42,7.78115907]
[1768294097766,0.70894823,141.46,141.42,7.78115907]
[1768294097965,3.20388898,141.45,141.42,7.78115907]
[1768294099381,3.20388898,141.45,141.43,0.71004429]
[1768294099584,3.20388898,141.44,141.41,20.68160661]
[1768294099878,3.91280225,141.44,141.41,20.68160661]
[1768294100078,3.91280225,141.44,141.41,7.78160661]
[1768294100382,0.70887901,141.42,141.4,12.9]
[1768294100683,0.70887901,141.42,141.4,13.61004429]
[1768294100684,3.20388898,141.42,141.4,13.61004429]
[1768294101558,3.20388898,141.43,141.41,0.71004429]
[1768294102379,3.91283721,141.45,141.41,0.71004429]
[1768294102565,3.20388898,141.45,141.41,0.71004429]
[1768294102882,3.20388898,141.44,141.41,0.71004429]
[1768294103868,3.20388898,141.44,141.42,0.71004429]
[1768294105385,3.20388898,141.44,141.38,3.20388898]
[1768294105386,0.70887901,141.42,141.38,0.71004429]
[1768294105560,3.20388898,141.41,141.38,0.71004429]
[1768294105760,3.91276799,141.42,141.39,0.71004429]
[1768294106571,3.91283721,141.43,141.4,0.71004429]
[1768294106773,3.20388898,141.44,141.4,0.71004429]
[1768294107984,3.20388898,141.44,141.41,7.07163566]
[1768294108488,3.20388898,141.44,141.41,7.78167995]
[1768294110679,3.91283721,141.45,141.41,7.78167995]
[1768294110871,0.70894823,141.45,141.41,7.78167995]
[1768294111072,3.91283721,141.45,141.41,7.78167995]
[1768294111272,0.70894823,141.45,141.41,7.78167995]
[1768294111584,3.91283721,141.45,141.41,7.78167995]
[1768294112580,3.90934209,141.46,141.42,0.71004429]
[1768294112783,0.70545311,141.46,141.42,0.71004429]
[1768294112981,3.20388898,141.45,141.42,0.71004429]
[1768294113284,0.70545311,141.46,141.42,0.71004429]
[1768294113473,3.90934209,141.46,141.42,0.71004429]
[1768294113670,3.90934209,141.46,141.43,0.71004429]
[1768294114487,0.70545311,141.46,141.43,0.71004429]
[1768294114687,3.90934209,141.46,141.43,0.71004429]
[1768294116389,0.70545311,141.46,141.43,0.71004429]
[1768294116579,3.90934209,141.46,141.43,0.71004429]
[1768294117988,10.97848434,141.46,141.43,0.71004429]
[1768294119787,7.77459536,141.46,141.43,0.71004429]